{"text_format":"3","workbook":"xlsx","n_sheets":7,"sheets":["Esmaspäev","Teisipäev","Kolmapäev","Neljapäev","Reede","Laupäev","Pühapäev"],"not_rendered":{"defined_names":21},"read":"whole","date_system":"1900"}

{"sheet":"Esmaspäev","index":0,"n_rows":10,"n_cols":13,"rows_kept":10,"merged":[[0,1,0,4],[1,2,1,4],[2,2,2,4]]}
[null,"TÖÖGRAAFIK"]
[null,"Nädal: ","Kuupäev"]
[null,"Osakonna nimi: ","Nimi"]
[]
[null,"ESMASPÄEV","7:00.00","8:00.00","9:00.00","10:00.00","11:00.00","12:00.00","13:00.00","14:00.00","15:00.00","Haige?","KOKKU"]
[null,"Nimi 1","Ülemus","Ülemus","Ülemus","Ülemus","Ülemus","Ülemus","Ülemus","Ülemus","Ülemus",null,{"$f":"COUNTIF(Esmaspäev[[#This Row],[7:00.00]:[15:00.00]],\"*\")","v":9}]
[null,"Nimi 2",null,"Kassapidaja","Kassapidaja","Kassapidaja","Kassapidaja",{"$nulls":5},{"$f":"COUNTIF(Esmaspäev[[#This Row],[7:00.00]:[15:00.00]],\"*\")","v":4}]
[null,"Nimi 3",null,"Administraator","Administraator","Administraator","Administraator ","Administraator","Administraator","Administraator",null,null,{"$f":"COUNTIF(Esmaspäev[[#This Row],[7:00.00]:[15:00.00]],\"*\")","v":7}]
[null,"Nimi 4",null,"Administraator","Administraator","Administraator","Administraator ","Administraator","Administraator","Administraator",null,null,{"$f":"COUNTIF(Esmaspäev[[#This Row],[7:00.00]:[15:00.00]],\"*\")","v":7}]
[null,"Nimi 5",{"$nulls":9},"Haige",{"$f":"COUNTIF(Esmaspäev[[#This Row],[7:00.00]:[15:00.00]],\"*\")","v":0}]

{"sheet":"Teisipäev","index":1,"n_rows":10,"n_cols":13,"rows_kept":10,"merged":[[0,1,0,4],[1,2,1,4],[2,2,2,4]]}
[null,"TÖÖGRAAFIK"]
[null,"Nädal: ",{"$f":"Esmaspäev!C2","v":"Kuupäev"}]
[null,"Osakonna nimi: ",{"$f":"Esmaspäev!C3","v":"Nimi"}]
[]
[null,"TEISIPÄEV","7:00.00","8:00.00","9:00.00","10:00.00","11:00.00","12:00.00","13:00.00","14:00.00","15:00.00","Haige?","KOKKU"]
[null,"Nimi 1","Ülemus","Ülemus","Ülemus","Ülemus","Ülemus","Ülemus","Ülemus","Ülemus","Ülemus",null,{"$f":"COUNTIF(Teisipäev[[#This Row],[7:00.00]:[15:00.00]],\"*\")","v":9}]
[null,"Nimi 2",null,"Kassapidaja","Kassapidaja","Kassapidaja","Kassapidaja",{"$nulls":5},{"$f":"COUNTIF(Teisipäev[[#This Row],[7:00.00]:[15:00.00]],\"*\")","v":4}]
[null,"Nimi 3",null,"Administraator","Administraator","Administraator","Administraator ","Administraator","Administraator","Administraator",null,null,{"$f":"COUNTIF(Teisipäev[[#This Row],[7:00.00]:[15:00.00]],\"*\")","v":7}]
[null,"Nimi 4",null,"Administraator","Administraator","Administraator","Administraator ","Administraator","Administraator","Administraator",null,null,{"$f":"COUNTIF(Teisipäev[[#This Row],[7:00.00]:[15:00.00]],\"*\")","v":7}]
[null,"Nimi 5",{"$nulls":9},"Haige",{"$f":"COUNTIF(Teisipäev[[#This Row],[7:00.00]:[15:00.00]],\"*\")","v":0}]

{"sheet":"Kolmapäev","index":2,"n_rows":10,"n_cols":13,"rows_kept":10,"merged":[[0,1,0,4],[1,2,1,4],[2,2,2,4]]}
[null,"TÖÖGRAAFIK"]
[null,"Nädal: ",{"$f":"Esmaspäev!C2","v":"Kuupäev"}]
[null,"Osakonna nimi: ",{"$f":"Esmaspäev!C3","v":"Nimi"}]
[]
[null,"KOLMAPÄEV","7:00.00","8:00.00","9:00.00","10:00.00","11:00.00","12:00.00","13:00.00","14:00.00","15:00.00","Haige?","KOKKU"]
[null,"Nimi 1","Ülemus","Ülemus","Ülemus","Ülemus","Ülemus","Ülemus","Ülemus","Ülemus","Ülemus",null,{"$f":"COUNTIF(Kolmapäev[[#This Row],[7:00.00]:[15:00.00]],\"*\")","v":9}]
[null,"Nimi 2",null,"Kassapidaja","Kassapidaja","Kassapidaja","Kassapidaja",{"$nulls":5},{"$f":"COUNTIF(Kolmapäev[[#This Row],[7:00.00]:[15:00.00]],\"*\")","v":4}]
[null,"Nimi 3",null,"Administraator","Administraator","Administraator","Administraator ","Administraator","Administraator","Administraator",null,null,{"$f":"COUNTIF(Kolmapäev[[#This Row],[7:00.00]:[15:00.00]],\"*\")","v":7}]
[null,"Nimi 4",null,"Administraator","Administraator","Administraator","Administraator ","Administraator","Administraator","Administraator",null,null,{"$f":"COUNTIF(Kolmapäev[[#This Row],[7:00.00]:[15:00.00]],\"*\")","v":7}]
[null,"Nimi 5",{"$nulls":9},"Haige",{"$f":"COUNTIF(Kolmapäev[[#This Row],[7:00.00]:[15:00.00]],\"*\")","v":0}]

{"sheet":"Neljapäev","index":3,"n_rows":10,"n_cols":13,"rows_kept":10,"merged":[[0,1,0,4],[1,2,1,4],[2,2,2,4]]}
[null,"TÖÖGRAAFIK"]
[null,"Nädal: ",{"$f":"Esmaspäev!C2","v":"Kuupäev"}]
[null,"Osakonna nimi: ",{"$f":"Esmaspäev!C3","v":"Nimi"}]
[]
[null,"NELJAPÄEV","7:00.00","8:00.00","9:00.00","10:00.00","11:00.00","12:00.00","13:00.00","14:00.00","15:00.00","Haige?","KOKKU"]
[null,"Nimi 1","Ülemus","Ülemus","Ülemus","Ülemus","Ülemus","Ülemus","Ülemus","Ülemus","Ülemus",null,{"$f":"COUNTIF(Neljapäev[[#This Row],[7:00.00]:[15:00.00]],\"*\")","v":9}]
[null,"Nimi 2",null,"Kassapidaja","Kassapidaja","Kassapidaja","Kassapidaja",{"$nulls":5},{"$f":"COUNTIF(Neljapäev[[#This Row],[7:00.00]:[15:00.00]],\"*\")","v":4}]
[null,"Nimi 3",null,"Administraator","Administraator","Administraator","Administraator ","Administraator","Administraator","Administraator",null,null,{"$f":"COUNTIF(Neljapäev[[#This Row],[7:00.00]:[15:00.00]],\"*\")","v":7}]
[null,"Nimi 4",null,"Administraator","Administraator","Administraator","Administraator ","Administraator","Administraator","Administraator",null,null,{"$f":"COUNTIF(Neljapäev[[#This Row],[7:00.00]:[15:00.00]],\"*\")","v":7}]
[null,"Nimi 5",{"$nulls":9},"Haige",{"$f":"COUNTIF(Neljapäev[[#This Row],[7:00.00]:[15:00.00]],\"*\")","v":0}]

{"sheet":"Reede","index":4,"n_rows":10,"n_cols":13,"rows_kept":10,"merged":[[0,1,0,4],[1,2,1,4],[2,2,2,4]]}
[null,"TÖÖGRAAFIK"]
[null,"Nädal: ",{"$f":"Esmaspäev!C2","v":"Kuupäev"}]
[null,"Osakonna nimi: ",{"$f":"Esmaspäev!C3","v":"Nimi"}]
[]
[null,"REEDE","7:00.00","8:00.00","9:00.00","10:00.00","11:00.00","12:00.00","13:00.00","14:00.00","15:00.00","Haige?","KOKKU"]
[null,"Nimi 1","Ülemus","Ülemus","Ülemus","Ülemus","Ülemus","Ülemus","Ülemus","Ülemus","Ülemus",null,{"$f":"COUNTIF(Reede[[#This Row],[7:00.00]:[15:00.00]],\"*\")","v":9}]
[null,"Nimi 2",null,"Kassapidaja","Kassapidaja","Kassapidaja","Kassapidaja",{"$nulls":5},{"$f":"COUNTIF(Reede[[#This Row],[7:00.00]:[15:00.00]],\"*\")","v":4}]
[null,"Nimi 3",null,"Administraator","Administraator","Administraator","Administraator ","Administraator","Administraator","Administraator",null,null,{"$f":"COUNTIF(Reede[[#This Row],[7:00.00]:[15:00.00]],\"*\")","v":7}]
[null,"Nimi 4",null,"Administraator","Administraator","Administraator","Administraator ","Administraator","Administraator","Administraator",null,null,{"$f":"COUNTIF(Reede[[#This Row],[7:00.00]:[15:00.00]],\"*\")","v":7}]
[null,"Nimi 5",{"$nulls":9},"Haige",{"$f":"COUNTIF(Reede[[#This Row],[7:00.00]:[15:00.00]],\"*\")","v":0}]

{"sheet":"Laupäev","index":5,"n_rows":10,"n_cols":13,"rows_kept":10,"merged":[[0,1,0,4],[1,2,1,4],[2,2,2,4]]}
[null,"TÖÖGRAAFIK"]
[null,"Nädal: ",{"$f":"Esmaspäev!C2","v":"Kuupäev"}]
[null,"Osakonna nimi: ",{"$f":"Esmaspäev!C3","v":"Nimi"}]
[]
[null,"LAUPÄEV","7:00.00","8:00.00","9:00.00","10:00.00","11:00.00","12:00.00","13:00.00","14:00.00","15:00.00","Haige?","KOKKU"]
[null,"Nimi 1","Ülemus","Ülemus","Ülemus","Ülemus","Ülemus","Ülemus","Ülemus","Ülemus","Ülemus",null,{"$f":"COUNTIF(Laupäev[[#This Row],[7:00.00]:[15:00.00]],\"*\")","v":9}]
[null,"Nimi 2",null,"Kassapidaja","Kassapidaja","Kassapidaja","Kassapidaja",{"$nulls":5},{"$f":"COUNTIF(Laupäev[[#This Row],[7:00.00]:[15:00.00]],\"*\")","v":4}]
[null,"Nimi 3",null,"Administraator","Administraator","Administraator","Administraator ","Administraator","Administraator","Administraator",null,null,{"$f":"COUNTIF(Laupäev[[#This Row],[7:00.00]:[15:00.00]],\"*\")","v":7}]
[null,"Nimi 4",null,"Administraator","Administraator","Administraator","Administraator ","Administraator","Administraator","Administraator",null,null,{"$f":"COUNTIF(Laupäev[[#This Row],[7:00.00]:[15:00.00]],\"*\")","v":7}]
[null,"Nimi 5",{"$nulls":9},"Haige",{"$f":"COUNTIF(Laupäev[[#This Row],[7:00.00]:[15:00.00]],\"*\")","v":0}]

{"sheet":"Pühapäev","index":6,"n_rows":10,"n_cols":13,"rows_kept":10,"merged":[[0,1,0,4],[1,2,1,4],[2,2,2,4]]}
[null,"TÖÖGRAAFIK"]
[null,"Nädal: ",{"$f":"Esmaspäev!C2","v":"Kuupäev"}]
[null,"Osakonna nimi: ",{"$f":"Esmaspäev!C3","v":"Nimi"}]
[]
[null,"PÜHAPÄEV","7:00.00","8:00.00","9:00.00","10:00.00","11:00.00","12:00.00","13:00.00","14:00.00","15:00.00","Haige?","KOKKU"]
[null,"Nimi 1","Ülemus","Ülemus","Ülemus","Ülemus","Ülemus","Ülemus","Ülemus","Ülemus","Ülemus",null,{"$f":"COUNTIF(Pühapäev[[#This Row],[7:00.00]:[15:00.00]],\"*\")","v":9}]
[null,"Nimi 2",null,"Kassapidaja","Kassapidaja","Kassapidaja","Kassapidaja",{"$nulls":5},{"$f":"COUNTIF(Pühapäev[[#This Row],[7:00.00]:[15:00.00]],\"*\")","v":4}]
[null,"Nimi 3",null,"Administraator","Administraator","Administraator","Administraator ","Administraator","Administraator","Administraator",null,null,{"$f":"COUNTIF(Pühapäev[[#This Row],[7:00.00]:[15:00.00]],\"*\")","v":7}]
[null,"Nimi 4",null,"Administraator","Administraator","Administraator","Administraator ","Administraator","Administraator","Administraator",null,null,{"$f":"COUNTIF(Pühapäev[[#This Row],[7:00.00]:[15:00.00]],\"*\")","v":7}]
[null,"Nimi 5",{"$nulls":9},"Haige",{"$f":"COUNTIF(Pühapäev[[#This Row],[7:00.00]:[15:00.00]],\"*\")","v":0}]